[Event "44th Chess Olympiad Open 2022"]
[Site "Chennai"]
[Date "2022.08.08"]
[Round "10.22"]
[White "Ortiz Suarez, Isan Reynaldo"]
[Black "Veiga, Jose Francisco R P N"]
[Result "1-0"]
[ECO "C95"]
[WhiteElo "2526"]
[BlackElo "2378"]
[Annotator "TA"]
[PlyCount "119"]
[EventDate "2022.07.29"]
[EventType "team-tourn"]
[EventCountry "IND"]
[SourceTitle "playchess.com"]
[Source "ChessBase"]
[SourceQuality "1"]
[WhiteTeam "Cuba"]
[BlackTeam "Portugal"]
[WhiteTeamCountry "CUB"]
[BlackTeamCountry "POR"]
[TimeControl "40/5400+30:1800+30"]

{[%evp 21,119,33,37,9,33,15,36,21,33,18,25,36,35,37,48,5,70,64,72,73,89,72,89,98,108,88,89,59,69,81,67,36,38,23,18,35,31,47,48,50,52,37,68,64,69,51,71,46,61,71,157,147,180,180,190,190,366,415,412,218,326,204,210,192,179,110,200,193,332,339,342,241,248,248,248,248,236,203,589,261,309,309,309,309,272,289,483,427,739,716,604,512,845,831,29989,29987,29987,29988,29988,29989]} 1. e4 {[%emt 0:00:03]} e5 {[%emt 0:00:13]} 2. Nf3 {[%emt 0:00:09]} Nc6 {[%emt 0:00:17]} 3. Bb5 {[%emt 0:00:06]} a6 {[%emt 0:00:30]} 4. Ba4 {[%emt 0:00:09]} Nf6 {[%emt 0:00:07]} 5. O-O {[%emt 0:00:16]} Be7 {[%emt 0:00:31]} 6. Re1 {[%emt 0:00:09]} b5 {[%emt 0:00:15]} 7. Bb3 {[%emt 0:00:08]} d6 {[%emt 0:00:17]} 8. c3 {[%emt 0:00:07]} O-O {[%emt 0:00:43]} 9. h3 {[%emt 0:00:08]} Nb8 {[%emt 0:00:44]} 10. d4 {[%emt 0:00:10]} Nbd7 {[%emt 0:00:27]} 11. Nbd2 {[%emt 0:00:08]} c5 {[%emt 0:01:01]} 12. Bc2 {[%emt 0:01:52] C95: Closed Ruy Lopez: Breyer Variation with 10 d4.} Re8 {[%emt 0:05:06]} 13. d5 {[%emt 0:10:34]} c4 {[%emt 0:03:22] [#]} 14. b3 $146 {[%emt 0:01:40] White is slightly better.} ({Predecessor:} 14. Nf1 a5 15. a3 Nc5 16. Ng3 Qb6 17. Be3 Bd7 18. Nd2 Rac8 19. Qf3 Qb7 20. Nf5 Bxf5 21. Qxf5 {0-1 (41) Hristodorescu,D (2211)-Aleksandrov,A (2608) Chess.com INT 2020}) 14... cxb3 {[%emt 0:08:02]} 15. axb3 {[%emt 0:00:06]} Qc7 {[%emt 0:04:18]} 16. Nb1 {[%emt 0:03:28]} Bd8 {[%emt 0:05:52]} 17. Bd2 {[%emt 0:05:43]} Qb8 {[%emt 0:07:15]} 18. Na3 {[%emt 0:01:03]} Nb6 {[%emt 0:10:21]} (18... Nf8 $11) 19. Bd3 $14 {[%emt 0:01:37]} Bd7 {[%emt 0:05:13]} 20. Nh2 {[%emt 0:05:44][%cal Bf3h2,Bh2f1,Bf1e3][%mdl 32]} Qb7 {[%emt 0:09:20]} 21. Nf1 {[%emt 0:01:59]} g6 {[%emt 0:01:34]} 22. Ne3 {[%emt 0:03:32]} Nh5 {[%emt 0:02:03]} 23. Bf1 {[%emt 0:08:17]} Ng7 {[%emt 0:01:14]} 24. c4 {[%emt 0:21:26][%cal Rc4b5]} b4 {[%emt 0:01:20]} 25. Bxb4 {[%emt 0:02:04]} Nxc4 {[%emt 0:00:53]} 26. Nec2 {[%emt 0:00:04]} (26. Bxc4 Qxb4 27. Nac2 Qb7 $11) 26... Nxa3 {[%emt 0:04:24]} 27. Rxa3 {[%emt 0:07:41]} a5 {[%emt 0:02:35]} 28. Qa1 {[%emt 0:03:00]} Rc8 {[%emt 0:04:10]} 29. Bc3 {[%emt 0:01:20]} f5 {[%emt 0:06:21]} 30. Ne3 {[%emt 0:00:14]} fxe4 {[%emt 0:00:34]} 31. Bxa5 {[%emt 0:01:51]} Be7 {[%emt 0:08:01]} 32. Bc3 {[%emt 0:04:50] Hoping for Ra7.} Ra8 {[%emt 0:00:03] Against Ra7} 33. Ba6 {[%emt 0:00:53]} Qb8 {[%emt 0:02:04]} 34. Bc4 {[%emt 0:00:28][%cal Oc3e5]} Rxa3 {[%emt 0:02:14]} 35. Qxa3 {[%emt 0:00:06][%cal Oc3e5]} Nf5 {[%emt 0:00:31] [#]} (35... Bd8 $142) 36. Bxe5 $1 $16 {[%emt 0:01:24][%mdl 512]} Nxe3 {[%emt 0:04:09]} (36... dxe5 37. d6+) 37. Rxe3 {[%emt 0:00:29]} Bf8 {[%emt 0:00:40]} 38. Ba1 {[%emt 0:02:51]} Qd8 $2 {[%emt 0:01:02]} (38... Re7 39. Bf6 Re8) 39. Qb2 $18 {[%emt 0:05:38]} Qh4 {[%emt 0:00:20]} 40. Qd4 {[%emt 0:00:50]} (40. Qh8+ $142 Kf7 41. b4) 40... Re5 {[%emt 0:01:17]} (40... Qh6 {might work better.} 41. f3 (41. Qh8+ Kf7 $16) 41... Ra8 42. Qh8+ Kf7 43. Qf6+ Kg8) 41. Qa7 {[%emt 0:36:57]} Re7 {[%emt 0:01:29][%cal Od7h3]} 42. Bd4 {[%emt 0:00:00]} Rf7 {[%emt 0:05:20] [#]} 43. Rg3 {[%emt 0:00:00] Active counter play!} (43. Qa2 $1 $18) 43... Qe7 {[%emt 0:03:08]} (43... Qf4 $16) 44. Qa8 {[%emt 0:09:09]} Bf5 {[%emt 0:05:36]} (44... Qh4 {was necessary.} 45. Rc3 Qh5) 45. b4 {[%emt 0:00:00]} Qh4 {[%emt 0:01:24][%cal Oe4e3]} 46. Rc3 {[%emt 0:00:00] b5 is the strong threat.} e3 {[%emt 0:01:59]} 47. Bxe3 {[%emt 0:00:00]} Rc7 {[%emt 0:00:08]} 48. Qa2 {[%emt 0:00:00] And now b5 would win.} Bg7 {[%emt 0:01:27]} 49. Rc1 {[%emt 0:00:00] aiming for b5.} Be5 $2 {[%emt 0:09:23]} (49... Bxh3 50. gxh3 Qxh3) 50. Bf1 {[%emt 0:00:00]} (50. b5 $142) 50... Rxc1 {[%emt 0:00:29]} 51. Bxc1 {[%emt 0:00:00]} Qxb4 {[%emt 0:00:12]} 52. Qa8+ {[%emt 0:00:00]} Kg7 {[%emt 0:00:29]} 53. Qa7+ {[%emt 0:00:00]} Kg8 $2 {[%emt 0:01:13] [#]} (53... Kh8 54. Bh6 Qc5 55. Qb8+ Qc8) 54. Bh6 $1 {[%emt 0:00:00] White wants to mate with Qa8+.} Qc3 {[%emt 0:02:37]} (54... g5 $142 55. Qe7 Qb8 56. Qxg5+ Bg6) 55. Qe7 {[%emt 0:00:00][%csl Gh6][%cal Re7f8]} Qc8 {[%emt 0:00:05] Prevents Qf8+.} 56. Bb5 {[%emt 0:00:00] Intending Be8 and mate.} Qa8 {[%emt 0:00:30]} (56... g5 $142 57. Qxg5+ Kh8) 57. f4 {[%emt 0:00:00][%cal Bf2f4,Bf4e5][%mdl 32]} Be4 {[%emt 0:03:32]} 58. fxe5 {[%emt 0:00:00][%csl Gh6][%cal Re7g7] White mates.} Qa1+ {[%emt 0:00:05]} 59. Bf1 {[%emt 0:00:00][%csl Gh6][%cal Re7g7]} Qd4+ {[%emt 0:00:20]} 60. Kh1 {[%emt 0:00:00] Weighted Error Value: White=0.24 (precise) /Black=0.45} 1-0

[Event "44th Chess Olympiad Open 2022"]
[Site "Chennai"]
[Date "2022.08.08"]
[Round "10.22"]
[White "Sousa, Andre Ventura"]
[Black "Albornoz Cabrera, Carlos Daniel"]
[Result "0-1"]
[ECO "D41"]
[WhiteElo "2420"]
[BlackElo "2566"]
[Annotator "TA"]
[PlyCount "90"]
[EventDate "2022.07.29"]
[EventType "team-tourn"]
[EventCountry "IND"]
[SourceTitle "playchess.com"]
[Source "ChessBase"]
[SourceQuality "1"]
[WhiteTeam "Portugal"]
[BlackTeam "Cuba"]
[WhiteTeamCountry "POR"]
[BlackTeamCountry "CUB"]
[TimeControl "40/5400+30:1800+30"]

{[%evp 26,90,37,0,0,0,31,0,0,0,0,0,17,0,47,0,0,0,18,0,0,0,0,0,0,0,0,0,16,0,0,0,0,0,0,0,0,-27,-33,-347,-341,-435,-431,-491,-432,-850,-801,-1069,-1102,-1275,-1227,-1266,-591,-1253,-1247,-1216,-1210,-1102,-1058,-1883,-1778,-2174,-2091,-1664,-1541,-1895,-1757]} 1. d4 {[%emt 0:00:03]} Nf6 {[%emt 0:00:07]} 2. c4 {[%emt 0:00:08]} e6 {[%emt 0:00:04]} 3. Nf3 {[%emt 0:00:07]} d5 {[%emt 0:00:08]} 4. Nc3 {[%emt 0:00:04]} c5 {[%emt 0:00:06]} 5. cxd5 {[%emt 0:00:15]} Nxd5 {[%emt 0:00:05]} 6. e4 {[%emt 0:00:14]} Nxc3 {[%emt 0:00:06]} 7. bxc3 {[%emt 0:00:04]} cxd4 {[%emt 0:00:07]} 8. cxd4 {[%emt 0:00:03]} Bb4+ {[%emt 0:00:06]} 9. Bd2 {[%emt 0:00:03]} Bxd2+ {[%emt 0:00:06]} 10. Qxd2 {[%emt 0:00:03]} O-O {[%emt 0:00:07]} 11. Bc4 {[%emt 0:00:31]} Nd7 {[%emt 0:00:07]} 12. O-O {[%emt 0:00:55]} b6 {[%emt 0:00:04]} 13. Rfe1 {[%emt 0:02:19]} Bb7 {[%emt 0:00:06]} 14. Rad1 {[%emt 0:00:20]} Rc8 {[%emt 0:00:19] D41: Queen's Gambit Declined: Semi-Tarrasch with 5 cxd5.} 15. Bd3 {[%emt 0:01:39]} Nf6 {[%emt 0:11:10]} 16. h3 {[%emt 0:11:24]} h6 {[%emt 0:00:00] [#] The position is equal.} 17. Re3 $146 {[%emt 0:01:03]} ({Predecessor:} 17. Bb1 Re8 18. Re3 Qc7 19. Ne5 Red8 20. Rg3 Nh5 21. Rb3 Nf6 22. Qf4 Nh5 23. Qh4 Qxe5 24. dxe5 Rxd1+ {½-½ (61) Werle,J (2527)-Ladva,O (2500) Porto Carras 2018}) 17... Qc7 {[%emt 0:02:38]} 18. Bb1 {[%emt 0:05:41]} b5 {[%emt 0:19:01]} 19. Ne5 {[%emt 0:19:08]} Kh8 {[%emt 0:06:05]} (19... Rfd8 $11) 20. Qb2 {[%emt 0:10:36]} (20. Qb4 $14 {feels stronger.}) 20... a6 $11 {[%emt 0:03:12]} 21. Rde1 {[%emt 0:06:15]} Qa5 {[%emt 0:06:03]} 22. Kf1 {[%emt 0:12:13]} Kg8 {[%emt 0:02:51]} 23. Rg3 {[%emt 0:03:31]} Nh5 {[%emt 0:12:23]} 24. Rf3 {[%emt 0:02:58]} Rc7 {[%emt 0:05:30]} 25. d5 {[%emt 0:07:27]} exd5 {[%emt 0:06:37]} 26. Ng4 $1 {[%emt 0:00:13] Threatens to win with Rf5.} g6 {[%emt 0:11:26] Inhibits Rf5.} 27. exd5 {[%emt 0:08:56]} (27. Ra3 {is interesting.} Qb6 28. e5 d4 29. Qd2) 27... Bxd5 {[%emt 0:00:30]} 28. Bxg6 {[%emt 0:00:29]} fxg6 {[%emt 0:00:01]} 29. Rxf8+ {[%emt 0:01:03]} Kxf8 {[%emt 0:00:02] Chess con chili.} 30. Qh8+ {[%emt 0:00:10]} ({Much worse is} 30. Qe5 Bg8 31. Nxh6 {[#]} Qd2 $1 $15) 30... Bg8 {[%emt 0:00:11]} 31. Qxh6+ {[%emt 0:03:45]} Ng7 {[%emt 0:03:19]} 32. Qf4+ {[%emt 0:01:05][%mdl 8192] This move loses the game for White.} ({White should play} 32. Rd1 $15 Re7 33. g3) 32... Nf5 $19 {[%emt 0:00:12] [#] And now ...Bc4+ would win.} 33. Qe5 {[%emt 0:01:54]} Qc3 {[%emt 0:01:34] Black is clearly winning.} ({Worse is} 33... Re7 34. Qb8+ Kf7 35. Rxe7+ Nxe7 36. Qf4+ Nf5 37. Nh6+ Kf8 38. Qb8+ Kg7 39. Qxg8+ (39. Nxg8 $2 Qc3 $19) 39... Kxh6 40. Qh8+ Kg5 41. g3 Nxg3+ 42. fxg3 $11) 34. Qe8+ {[%emt 0:00:19]} Kg7 {[%emt 0:00:01]} 35. Rd1 {[%emt 0:01:08]} (35. a3 $142) 35... Re7 {[%emt 0:01:06]} 36. Qd8 {[%emt 0:00:03]} Bxa2 {[%emt 0:01:29] aiming for ...Bb3.} 37. Kg1 {[%emt 0:00:18]} Re1+ {[%emt 0:00:26]} 38. Rxe1 {[%emt 0:00:03]} Qxe1+ {[%emt 0:00:04]} 39. Kh2 {[%emt 0:00:01]} Qe7 {[%emt 0:00:39] Inhibits Qf6+.} 40. Qa5 {[%emt 0:00:55]} Qd6+ {[%emt 0:00:16]} 41. Kg1 {[%emt 0:30:20]} Bf7 {[%emt 0:31:03]} 42. Qa1+ {[%emt 0:00:18]} Qd4 {[%emt 0:02:02]} 43. Qa5 {[%emt 0:01:43]} b4 {[%emt 0:00:00] ( -> ...b3)} 44. Ne5 {[%emt 0:00:04]} b3 {[%emt 0:01:19] ...b2 is the strong threat.} 45. Qc7 {[%emt 0:00:03]} Nd6 {[%emt 0:00:52] Weighted Error Value: White=0.62/Black=0.05 (flawless)} 0-1

[Event "44th Chess Olympiad Open 2022"]
[Site "Chennai"]
[Date "2022.08.08"]
[Round "10.22"]
[White "Santos, Jose Guilherme B Lim"]
[Black "Almeida Quintana, Omar"]
[Result "1/2-1/2"]
[ECO "C41"]
[WhiteElo "2361"]
[BlackElo "2523"]
[Annotator "TA"]
[PlyCount "109"]
[EventDate "2022.07.29"]
[EventType "team-tourn"]
[EventCountry "IND"]
[SourceTitle "playchess.com"]
[Source "ChessBase"]
[SourceQuality "1"]
[WhiteTeam "Portugal"]
[BlackTeam "Cuba"]
[WhiteTeamCountry "POR"]
[BlackTeamCountry "CUB"]
[TimeControl "40/5400+30:1800+30"]

{[%evp 10,109,27,27,27,17,29,18,29,0,0,-1,0,-14,-16,-14,-19,-52,-46,-58,-53,-58,-40,-45,-39,-53,-43,-106,-104,-143,-132,-258,-265,-264,-251,-295,-292,-281,-183,-177,-170,-258,-269,-273,-276,-275,-267,-256,-266,-262,-265,-260,-204,-227,-216,-368,-346,-397,-390,-422,-422,-426,-426,-418,-411,-396,-245,-256,-105,-105,-105,-105,-68,-104,-99,-104,-107,-125,-117,-125,-26,-26,-25,-25,-25,-25,-25,-25,-25,-28,-22,-22,-27,-60,-60,-58,-54,-29971,0,0,0,41]} 1. e4 {[%emt 0:00:13]} d6 {[%emt 0:00:51]} 2. d4 {[%emt 0:02:10]} Nf6 {[%emt 0:00:15]} 3. Nc3 {[%emt 0:00:07]} e5 {[%emt 0:02:06]} 4. Nf3 {[%emt 0:00:40]} Nbd7 {[%emt 0:00:09]} 5. g3 {[%emt 0:00:24]} c6 {[%emt 0:00:14]} 6. Bg2 {[%emt 0:00:07]} b5 {[%emt 0:00:13] C41: Philidor Defence.} 7. a3 {[%emt 0:01:12]} Bb7 {[%emt 0:00:15]} 8. O-O {[%emt 0:00:28]} Be7 {[%emt 0:00:36]} 9. Re1 {[%emt 0:00:03]} O-O {[%emt 0:00:08]} 10. Nh4 {[%emt 0:12:25]} g6 {[%emt 0:01:17] Inhibits Nf5.} 11. h3 {[%emt 0:02:47]} Re8 {[%emt 0:02:58]} 12. Bh6 {[%emt 0:01:36]} a5 {[%emt 0:14:05] [#]} 13. d5 $146 {[%emt 0:25:40]} ({Predecessor:} 13. Nf3 b4 14. Nb1 c5 15. dxe5 dxe5 {½-½ (15) Vajda,L (2617)-Nevednichy,V (2580) Albena 2013}) 13... cxd5 {[%emt 0:12:30]} 14. exd5 {[%emt 0:00:05]} b4 {[%emt 0:00:06]} 15. axb4 {[%emt 0:01:29]} axb4 {[%emt 0:00:07]} 16. Na2 {[%emt 0:00:02]} Qb6 {[%emt 0:02:33]} 17. Qd2 $1 {[%emt 0:03:40]} b3 $1 $36 {[%emt 0:05:17][%mdl 2048] White is under pressure.} 18. cxb3 {[%emt 0:00:23]} (18. Nb4 $15) 18... Nc5 $17 {[%emt 0:06:08]} 19. Qb4 {[%emt 0:10:50]} Bd8 {[%emt 0:08:38]} 20. Be3 {[%emt 0:08:32]} (20. Qxb6 $17 Bxb6 21. Nc3) 20... Qxb4 $1 $19 {[%emt 0:09:04]} (20... Bxd5 21. Bxc5 Qxc5 22. Qxc5 dxc5 23. Bxd5 Nxd5 24. Nc3 Rxa1 25. Rxa1 $15) 21. Nxb4 {[%emt 0:00:20]} Ba5 $1 {[%emt 0:00:06]} (21... Nxb3 22. Rxa8 Bxa8 23. Rd1 $11 (23. Nc6 Bc7 $15)) 22. Rxa5 {[%emt 0:13:06]} Rxa5 {[%emt 0:00:08]} 23. Nc6 {[%emt 0:00:01]} Bxc6 {[%emt 0:03:26]} ({Inferior is} 23... Nxb3 24. Nxa5 Nxa5 25. Rd1 $15) 24. dxc6 {[%emt 0:03:45]} Nxb3 {[%emt 0:06:07]} 25. Rd1 {[%emt 0:00:04]} (25. Nf3 $142) 25... d5 {[%emt 0:02:03]} 26. Bg5 {[%emt 0:00:20]} Kg7 {[%emt 0:01:49]} ({Wrong is} 26... Ne4 $2 27. Bxe4 dxe4 28. Rd7 $19) 27. Bxf6+ {[%emt 0:01:09]} Kxf6 {[%emt 0:00:01]} 28. Bxd5 {[%emt 0:01:59]} Nd4 {[%emt 0:00:21]} 29. Be4 {[%emt 0:01:13]} Ra4 {[%emt 0:05:47] Threatens to win with ...Ne2+.} 30. Kg2 {[%emt 0:02:34]} Rc4 {[%emt 0:00:41]} 31. b3 {[%emt 0:01:20]} Rc3 {[%emt 0:01:50]} ({Weaker is} 31... Nxb3 32. Rd6+ Re6 33. Rd8 $17) 32. b4 $2 {[%emt 0:00:47]} (32. Nf3 {was called for.} Nxf3 33. Bxf3) 32... Nxc6 {[%emt 0:00:26]} 33. b5 {[%emt 0:01:13]} Nd4 {[%emt 0:00:50]} 34. b6 {[%emt 0:00:04]} Rb3 {[%emt 0:05:42]} 35. b7 {[%emt 0:02:50]} g5 {[%emt 0:00:22]} 36. Nf3 {[%emt 0:00:05]} Nxf3 {[%emt 0:00:08]} 37. Bd5 {[%emt 0:00:31] [#]} Rb4 {[%emt 0:03:35]} 38. Bc6 {[%emt 0:00:27] [#]} (38. Kxf3 Rd8) 38... Nd4 $1 {[%emt 0:06:14]} 39. Bxe8 $17 {[%emt 0:00:13][%cal Oe8c6]} Rxb7 {[%emt 0:00:01][%mdl 4096] Endgame KRB-KRN} 40. Bc6 {[%emt 0:00:18]} Rb4 {[%emt 0:00:35]} 41. Be4 {[%emt 0:34:06]} h5 {[%emt 0:30:20]} 42. Ra1 {[%emt 0:00:00]} h4 {[%emt 0:00:00]} 43. Ra6+ {[%emt 0:00:00]} Kg7 $1 {[%emt 0:00:00]} 44. Ra7 {[%emt 0:00:00] [#]} hxg3 {[%emt 0:00:00]} ({Better is} 44... Nb5 $1 $17 {[%cal Rb5a7]} 45. Rb7 Rxe4 46. Rxb5 f6) 45. Bd5 $11 {[%emt 0:00:00]} gxf2 {[%emt 0:00:00]} 46. Rxf7+ {[%emt 0:00:00]} Kg6 {[%emt 0:00:00] And now ...Ne2 would win.} 47. Rxf2 {[%emt 0:00:00]} Nf5 {[%emt 0:00:00] Hoping for ...Ne3+.} 48. Bf7+ {[%emt 0:00:00]} Kf6 {[%emt 0:00:00]} 49. Bh5 {[%emt 0:00:00]} Rf4 {[%emt 0:00:00]} 50. Ra2 {[%emt 0:00:00]} e4 {[%emt 0:00:00][%cal Be5e4,Be4e3][%mdl 32]} 51. Ra5 {[%emt 0:00:00]} e3 {[%emt 0:00:00]} 52. Bg4 {[%emt 0:00:13]} Nh4+ {[%emt 0:04:29]} 53. Kg3 $2 {[%emt 0:02:18][%mdl 8192] [#]} (53. Kg1 $15) 53... Rd4 $2 {[%emt 0:01:02]} (53... Rf2 $1 {mates} 54. Ra6+ Ke7 55. Ra7+ Kd8 56. Ra8+ Ke7 57. Ra7+ Kd8 58. Ra8+ Ke7 59. Ra7+) 54. Ra6+ {[%emt 0:00:33]} Ke5 {[%emt 0:00:01]} 55. Re6+ {[%emt 0:00:19] Weighted Error Value: White=0.35/Black=0.21 (precise)} 1/2-1/2

[Event "44th Chess Olympiad Open 2022"]
[Site "Chennai"]
[Date "2022.08.08"]
[Round "10.23"]
[White "Dragnev, Valentin"]
[Black "Fluvia Poyatos, Jordi"]
[Result "1/2-1/2"]
[ECO "B12"]
[WhiteElo "2557"]
[BlackElo "2451"]
[Annotator "TA"]
[PlyCount "86"]
[EventDate "2022.07.29"]
[EventType "team-tourn"]
[EventCountry "IND"]
[SourceTitle "playchess.com"]
[Source "ChessBase"]
[SourceQuality "1"]
[WhiteTeam "Austria"]
[BlackTeam "Andorra"]
[WhiteTeamCountry "AUT"]
[BlackTeamCountry "AND"]
[TimeControl "40/5400+30:1800+30"]

{[%evp 9,86,0,0,0,0,0,0,0,10,0,0,0,0,0,16,22,19,26,0,0,0,-36,-25,-70,-74,-71,-16,-37,0,0,0,0,0,0,0,0,0,0,731,0,0,0,0,-13,-12,-14,-22,-53,-52,-54,-54,-80,-77,-82,-39,-77,0,-70,-63,-98,-70,-98,-45,-84,-77,-77,-55,-99,-57,-77,0,-86,-55,-77,0,-95,0,-71,0]} 1. e4 {[%emt 0:00:07]} c6 {[%emt 0:00:24]} 2. d4 {[%emt 0:00:55]} d5 {[%emt 0:00:09]} 3. e5 {[%emt 0:00:30]} c5 {[%emt 0:00:39]} 4. Nf3 {[%emt 0:00:38]} cxd4 {[%emt 0:00:36]} 5. Qxd4 {[%emt 0:00:53]} Nc6 {[%emt 0:01:15]} 6. Qf4 {[%emt 0:00:22] B12: Caro-Kann: Advance Variation.} e6 {[%emt 0:00:20]} 7. Bd3 {[%emt 0:00:55]} Nb4 {[%emt 0:01:36]} 8. Nc3 $1 {[%emt 0:00:33][%mdl 4] The position is equal. is now more promising than 8.0-0.} Bd7 {[%emt 0:01:41]} 9. O-O {[%emt 0:01:22][%cal Od3h7]} Nxd3 {[%emt 0:01:13]} 10. cxd3 {[%emt 0:00:16]} Ne7 {[%emt 0:05:26]} 11. h4 {[%emt 0:00:52]} Ng6 {[%emt 0:10:40]} 12. Qg3 {[%emt 0:02:58]} h5 {[%emt 0:01:17] [#]} 13. Ne2 $146 {[%emt 0:02:47]} ({Predecessor:} 13. a3 Be7 14. Bg5 Bxg5 15. hxg5 Qb6 16. Rab1 O-O-O 17. Rfc1 Kb8 18. Nxd5 Qb5 19. Nb4 {½-½ (51) Iljiushenok,I (2515)-Rozum,I (2566) Sochi 2020}) 13... Qb6 {[%emt 0:29:38]} 14. Be3 {[%emt 0:30:38]} Qxb2 {[%emt 0:04:16]} 15. Nfd4 {[%emt 0:02:52]} Qa3 {[%emt 0:08:41]} 16. Nf4 {[%emt 0:11:15]} Nxf4 {[%emt 0:04:42]} (16... Nxe5 17. Nfxe6 Bxe6 18. Nxe6 fxe6 19. Qxe5 $11) 17. Bxf4 {[%emt 0:00:17]} g6 {[%emt 0:06:45]} ({Black should try} 17... Rc8 $17) 18. Rac1 {[%emt 0:09:26]} Be7 {[%emt 0:00:00]} 19. Bg5 $1 $36 {[%emt 0:03:04][%mdl 2048] White has good play.} (19. Rc7 Qb4 20. Nb3 Bc6 $17) 19... Bxg5 {[%emt 0:03:16]} 20. Qxg5 {[%emt 0:00:13]} Qxd3 {[%emt 0:03:36]} 21. Rfd1 {[%emt 0:02:01]} Qa3 {[%emt 0:01:02]} 22. Rc7 {[%emt 0:00:39]} Qa4 {[%emt 0:00:55]} 23. Rd3 {[%emt 0:08:16][%cal Od4e6]} Rc8 $2 {[%emt 0:01:08][%mdl 8192] [#]} (23... O-O $11) 24. Rxb7 $2 {[%emt 0:00:00]} (24. Nxe6 $1 $18 {[%mdl 512] White wants to mate with Rxc8+.} fxe6 25. Rxc8+ (25. Rxb7 $2 Qg4 $19) 25... Bxc8 26. Qxg6+ Kd8 27. Qf6+ Kc7 28. Rc3+ Kb6 29. Qxh8) 24... O-O $11 {[%emt 0:04:33]} 25. Qh6 {[%emt 0:09:25] Hoping for Nf3.} Rb8 {[%emt 0:02:42]} 26. Rbb3 {[%emt 0:04:03]} ({Of course not} 26. Rc7 Rfc8 27. Rxc8+ Rxc8 $17) 26... Rxb3 {[%emt 0:02:21]} 27. axb3 {[%emt 0:00:26]} Qb4 {[%emt 0:00:28] Strongly threatening ...Qe1+.} 28. Nf3 {[%emt 0:01:39] Prevents Qe1+. g3 is the strong threat.} Rc8 {[%emt 0:00:20]} (28... Bb5 $2 29. Rd1 Rc8 30. Ng5 $18) 29. Rd4 {[%emt 0:00:49]} Qf8 {[%emt 0:00:53]} 30. Qe3 {[%emt 0:01:24]} Qc5 {[%emt 0:00:41]} 31. Kh2 {[%emt 0:00:15]} Qc1 {[%emt 0:00:38]} 32. Rd2 {[%emt 0:00:20]} Qc5 {[%emt 0:02:16]} (32... a5 $17) 33. Qg5 {[%emt 0:02:34]} (33. Rd4 $1 $11) 33... Be8 $15 {[%emt 0:01:14]} 34. Kg3 {[%emt 0:02:18]} Rc7 {[%emt 0:01:04]} 35. Rd4 {[%emt 0:00:50]} Qe7 {[%emt 0:00:30]} ({Better is} 35... Rb7 $17 36. Qe3 a6) 36. Qe3 {[%emt 0:00:21]} a5 {[%emt 0:00:28]} 37. Qd2 {[%emt 0:01:08]} Qc5 {[%emt 0:00:26]} 38. Rd3 {[%emt 0:01:00]} Qa3 {[%emt 0:01:06]} 39. Qe3 {[%emt 0:01:01]} Qc5 {[%emt 0:00:14]} (39... Qb4 $17 40. Qd2 Qc5) 40. Qg5 {[%emt 0:00:29]} (40. Qd2 $1 $11) 40... Qe7 {[%emt 0:00:28]} 41. Qd2 {[%emt 0:02:57]} Qc5 {[%emt 0:06:54]} 42. Qg5 $1 {[%emt 0:08:01]} Qe7 {[%emt 0:00:58]} 43. Qd2 $1 {[%emt 0:06:42]} Qc5 {[%emt 0:00:26] Weighted Error Value: White=0.29 (precise) /Black=0.19 (very precise)} (43... Bb5 $17 44. Rc3 Be8) 1/2-1/2